Cogmind - Beta 15 @@@ ROGUE MODE // 2025.10.04 @ 14:51:05 Player: rapskalian Result: Destroyed by X-57 Shotgunner with Shotgun Performance ------------- Evolutions (2) 1000 Regions Visited (3) 600 Robots Destroyed (56) 280 Value Destroyed (1483) 1483 Prototype IDs (6) 120 Alien Tech Used (0) 0 Bonus (0) 0 TOTAL SCORE: 3483 Bonus ------- None Cogmind --------- Core Integrity 0/550 Matter 25/300 Energy 100/100 System Corruption 0% Temperature Warm (140) Movement Walking (190) Ox1 Location -8/Materials Parts ------- > --- POWER (1) -------- (None) > --- PROPULSION (3) --- Improved Carbon-fiber Leg > --- UTILITY (3) ------ Large Storage Unit > --- WEAPON (4) ------- Improved Medium Laser > --- INVENTORY (15) --- Light Treads Light Treads Aluminum Leg Aluminum Leg Compact Wheel Hardened Medium Armor Plating Field Recycling Unit (77) Grenade Launcher Peak State ------------ > --- POWER ------------ Heavy Ion Engine > --- PROPULSION ------- Aluminum Leg Carbon-fiber Leg Carbon-fiber Leg > --- UTILITY ---------- Large Storage Unit Hardened Medium Armor Plating Field Recycling Unit > --- WEAPON ----------- Advanced Beam Rifle Enhanced Autogun Assault Cannon Flak Cannon > --- INVENTORY -------- Light Treads Aluminum Leg Improved Carbon-fiber Leg Compact Wheel Seismic Detector Hardened Medium Armor Plating Hardened Medium Armor Plating Improved Medium Laser Improved Medium Laser Improved Medium Laser Heavy Particle Cannon Grenade Launcher Improved Grenade Launcher [Rating: 33] Favorites ----------- Power Heavy Ion Engine Engine Heavy Ion Engine Power Core Nuclear Core Propulsion Compact Wheel Treads Light Treads Leg Carbon-fiber Leg Wheel Compact Wheel Utility Large Storage Unit Device Seismic Detector Storage Large Storage Unit Protection Hardened Medium Armor Plating Weapon Assault Rifle Energy Gun Improved Medium Laser Energy Cannon Heavy Particle Cannon Ballistic Gun Assault Rifle Ballistic Cannon Assault Cannon Launcher Improved Grenade Launcher Special Weapon Plasma Cutter Build | -11 -10 -9 -8 ------- Run | Yrd Mat Mat Mat Slots Evolved 4 | . . 2 2 Power . | . . . . Propulsion 1 | . . . 1 Utility 1 | . . . 1 Weapon 2 | . . 2 . Parts Attached 38 | 6 2 4 26 Power 6 | 1 . . 5 Engine 4 | 1 . . 3 Core 2 | . . . 2 Reactor . | . . . . Propulsion 8 | 2 . . 6 Treads 1 | . . . 1 Leg 5 | . . . 5 Wheel 2 | 2 . . . Hover . | . . . . Flight . | . . . . Utility 7 | 1 2 . 4 Device 2 | . 1 . 1 Storage 2 | 1 1 . . Processor . | . . . . Hackware . | . . . . Protection 3 | . . . 3 Artifact . | . . . . Weapon 17 | 2 . 4 11 Energy Gun 6 | 1 . 1 4 Energy Cannon 1 | . . . 1 Ballistic Gun 5 | 1 . 2 2 Ballistic Cannon 2 | . . . 2 Launcher 2 | . . 1 1 Special Weapon 1 | . . . 1 Impact Weapon . | . . . . Slashing Weapon . | . . . . Piercing Weapon . | . . . . Special Melee Weapon . | . . . . Unidentified Prototypes 4 | . . 1 3 Parts Lost 19 | . . . 19 Power 3 | . . . 3 Propulsion 5 | . . . 5 Utility 3 | . . . 3 Weapon 8 | . . . 8 Highest Loss Streak 13 | . . . 13 To Critical Strikes 1 | . . . 1 Average Backups 12 | 3 8 14 13 Power . | . 1 1 . Propulsion 4 | 2 4 5 4 Utility 1 | . . . 2 Weapon 5 | . 3 6 6 Tool/Special . | . . . . Unused Backups 14 | . . 3 11 Power 2 | . . . 2 Propulsion 5 | . . . 5 Utility 1 | . . . 1 Weapon 6 | . . 3 3 Tool/Special . | . . . . Average Slot Usage (%) 96 | . 93 97 96 Engine 7 | . 14 11 5 Core 2 | . . . 3 Treads 3 | . . . 4 Leg 7 | . . . 10 Wheel 14 | . 28 22 10 Device 8 | . 3 10 8 Storage 10 | . 17 11 9 Protection 5 | . . . 8 Energy Gun 15 | . 14 11 16 Ballistic Gun 11 | . 14 30 6 Ballistic Cannon 7 | . . . 10 Peak Build Rating 33 | 6 8 13 33 Average Rating 21 | 4 6 12 26 On Entrance 6 | . 6 8 13 Naked Turns . | . . . . Heaviest Build 61 | 12 32 33 61 Greatest Support 43 | 32 32 32 43 Greatest Overweight (x) 2 | . . 1 2 Average Overweight (x) . | . . . 1 Largest Inventory Capacity 15 | 8 15 15 15 Average Capacity 14 | 6 12 15 15 Most Carried 15 | 6 13 15 15 Average Carried 13 | 4 8 14 13 Final Capacity 15 | 8 15 15 15 Final Carried 15 | 6 13 15 8 Class Distribution -------------------- 63% | Tank 19% | Gunner 16% | Mutant Dominant Class ---------------- Mutant | -10/Materials Gunner | -9/Materials Tank | -8/Materials Resources | -11 -10 -9 -8 ----------- Run | Yrd Mat Mat Mat Matter Collected 1249 | 260 41 192 756 Remotely . | . . . . Salvage Created 1608 | . 115 279 1214 Parts 140 | . 8 29 103 Haulers Intercepted 5 | . 1 1 3 Recyclers Shooed 2 | . . . 2 Parts Field Recycled 26 | . . . 26 Retrieved Matter 273 | . . . 273 Parts Self-Destructed . | . . . . Prevented . | . . . . Kills | -11 -10 -9 -8 ------- Run | Yrd Mat Mat Mat Combat Hostiles Destroyed 39 | . 3 9 27 Guns 12 | . 1 3 8 Cannons 12 | . . . 12 AOE 14 | . 2 6 6 Classes Destroyed 12 | . 3 3 6 Worker 3 | . . . 3 Builder 4 | . . . 4 Hauler 5 | . 1 1 3 Recycler 1 | . . . 1 Watcher 4 | . 1 . 3 Swarmer 14 | . 3 4 7 Grunt 10 | . . 3 7 Brawler 2 | . . 1 1 Sentry 6 | . . 1 5 Specialist 3 | . . . 3 Hunter 3 | . . . 3 Heavy 1 | . . . 1 Best Kill Streak 7 | . 3 4 7 Combat Bots Only 4 | . 3 4 4 Max Kills in Single Turn 3 | . 3 3 3 Gunslinging . | . . . . Exploded 3 | . 2 3 2 Melee . | . . . . Uniques/NPCs Destroyed . | . . . . Combat | -11 -10 -9 -8 -------- Run | Yrd Mat Mat Mat Hostile Shots Fired 269 | . 2 16 251 Missed 63 | . 2 3 58 Hits 206 | . . 13 193 Melee 2 | . . . 2 Projectile 204 | . . 13 191 Critical Strikes 7 | . . . 7 Damage Taken 3197 | . . 121 3076 Core 552 | . . . 552 Absorbed by Shields . | . . . . Regen/Repaired (Parts) 56 | . . 56 . Core Remaining (%) 100 | 100 100 100 . Volleys Fired 91 | . 7 13 71 Largest 4 | . 2 4 4 Hottest 229 | . 60 126 229 Shots Fired 266 | . 14 45 207 Gun 168 | . 14 37 117 Cannon 72 | . . . 72 Launcher 23 | . . 8 15 Special 3 | . . . 3 Kinetic 136 | . 7 26 103 Thermal 92 | . . 6 86 Explosive 23 | . . 8 15 Electromagnetic 15 | . 7 5 3 Robot Hit Streak 8 | . 3 5 8 Robot Miss Streak 5 | . 1 3 5 Penetration Max . | . . . . Secondary Targets 1 | . . 1 . Max Gunslinging Chain 1 | . . 1 . Shots Hit Robots 127 | . 8 17 102 Core Hits 93 | . 6 15 72 Critical Kills . | . . . . Critical Parts Destroyed . | . . . . Critical Strikes 4 | . 1 . 3 Burn 3 | . . . 3 Corrupt 1 | . 1 . . Melee Attacks . | . . . . Impact . | . . . . Slashing . | . . . . Piercing . | . . . . Sneak Attacks . | . . . . Combat Hostiles . | . . . . Follow-up Attacks . | . . . . Damage Inflicted 3651 | . 203 409 3039 Guns 1387 | . 122 176 1089 Cannons 885 | . . . 885 Explosions 1360 | . 81 233 1046 Melee . | . . . . Ramming 19 | . . . 19 Kinetic 1198 | . 40 86 1072 Thermal 1024 | . 81 51 892 Explosive 1279 | . . 233 1046 Electromagnetic 131 | . 82 39 10 Impact . | . . . . Slashing . | . . . . Piercing . | . . . . Highest Corruption . | . . . . Average Corruption . | . . . . Corruption Purged . | . . . . Corruption Blocked . | . . . . Overload Shots . | . . . . Overflow Damage 34 | . . . 34 Projectiles 7 | . . . 7 Explosions 27 | . . . 27 Melee . | . . . . Knockbacks 6 | . . . 6 Impact . | . . . . Kinetic 6 | . . . 6 Secondary . | . . . . Self-Inflicted Damage 87 | . . 2 85 Shots 4 | . . 1 3 Rammed . | . . . . Targets Rammed 3 | . . . 3 Kicked 3 | . . . 3 Crushed . | . . . . Highest Temperature 625 | . . 182 625 Average Temperature 183 | . . 53 198 Received Heat Transfer 696 | . . 12 684 Effects 26 | . . . 26 Shutdowns 4 | . . . 4 Energy Bleed 2 | . . . 2 Interference 8 | . . . 8 Matter Decay 2 | . . . 2 Short Circuit 2 | . . . 2 Damage (minor) 3 | . . . 3 Damage (major) 3 | . . . 3 Damage (core) 2 | . . . 2 Siege Activations . | . . . . Martial Activations . | . . . . Shielding Activations . | . . . . Robots Disrupted . | . . . . Combat Hostiles . | . . . . Robots Corrupted . | . . . . Combat Hostiles . | . . . . Parts Fried 1 | . 1 . . Impact Corruptions . | . . . . Robots Melted 1 | . . . 1 Combat Hostiles 1 | . . . 1 Parts Melted 1 | . . . 1 Heat Transferred 2122 | . 50 111 1961 Parts Sabotaged . | . . . . Parts Stolen . | . . . . Parts Stripped . | . . . . Power Chain Reactions 1 | . 1 . . Alert | -11 -10 -9 -8 ------- Run | Yrd Mat Mat Mat Maximum Alert Level 1 | . . . 1 Low Security (%) 82 | 100 100 100 74 Level 1 17 | . . . 25 Level 2 . | . . . . Level 3 . | . . . . Level 4 . | . . . . Level 5 . | . . . . High Security . | . . . . Max Security . | . . . . Peak Influence 354 | . 63 161 354 Initial 39 | . . . 39 Average 94 | . 14 97 113 Influence Increases 1288 | . 92 284 912 Destroy 0b10 Robot/C 780 | . 60 180 540 Destroy 0b10 Robot/NC 85 | . 10 5 70 Destroy Leader 198 | . 14 32 152 Successful Hack 18 | . 5 13 . Disable Machine 45 | . . 15 30 Destroy Structure 147 | . 3 39 105 Lose Combat Pursuer 15 | . . . 15 Influence Decreases 1067 | . 92 190 785 Entered New Map 55 | . . . 55 Time Decay 793 | . 92 190 511 Lost Part 190 | . . . 190 Purge Threat 29 | . . . 29 Squads Dispatched 6 | . . . 6 Investigation . | . . . . Extermination . | . . . . Reinforcement 4 | . . . 4 Assault . | . . . . Garrison 2 | . . . 2 Intercept . | . . . . Searches Triggered . | . . . . Construction Impeded 1 | . . . 1 Haulers Reinforced . | . . . . Active Scanning Responses . | . . . . Cargo Convoy Interrupts . | . . . . Stealth | -11 -10 -9 -8 --------- Run | Yrd Mat Mat Mat Distress Signals 9 | . . 1 8 Communications Jammed . | . . . . Distress Signals . | . . . . Times Spotted 61 | . 6 11 44 Peak Tracking Total 8 | . 4 4 8 Tactical Retreats 1 | . . . 1 Traps | -11 -10 -9 -8 ------- Run | Yrd Mat Mat Mat Traps Triggered . | . . . . Indirectly . | . . . . Trap Hack Attempts . | . . . . Triggered . | . . . . Disarmed . | . . . . Reprogrammed . | . . . . Reused . | . . . . Traps Extracted . | . . . . Installed . | . . . . Triggered . | . . . . Machines | -11 -10 -9 -8 ---------- Run | Yrd Mat Mat Mat Machines Disabled 3 | . . 1 2 Max in Single Turn 1 | . . 1 1 Machines Repaired . | . . . . Machines Dismantled . | . . . . Machines Sabotaged . | . . . . Overloaded Fab Kills . | . . . . Hacking | -11 -10 -9 -8 --------- Run | Yrd Mat Mat Mat Machines Accessed 6 | . 2 2 2 Terminals 5 | . 2 1 2 Fabricators . | . . . . Repair Stations 1 | . . 1 . Recycling Units . | . . . . Scanalyzers . | . . . . Garrison Access . | . . . . Total Hacks 14 | . 3 7 4 Successful 13 | . 2 7 4 Failed 1 | . 1 . . Catastrophic . | . . . . Database Lockouts . | . . . . Manual . | . . . . Terminals 8 | . 3 1 4 Fabricators . | . . . . Repair Stations 6 | . . 6 . Recycling Units . | . . . . Scanalyzers . | . . . . Garrison Access . | . . . . Terminal Hacks 7 | . 2 1 4 Prototype ID Bank 1 | . 1 . . Terminal Index 1 | . . 1 . Alert Level 2 | . . . 2 Unreport Threat 1 | . . . 1 Locate Traps 1 | . . . 1 Dispatch Records 1 | . 1 . . Fabricator Hacks . | . . . . Repair Station Hacks 6 | . . 6 . Scan Component 3 | . . 3 . Repair 3 | . . 3 . Recycling Unit Hacks . | . . . . Scanalyzer . | . . . . Garrison Access Hacks . | . . . . Unauthorized Hacks . | . . . . Terminals . | . . . . Fabricators . | . . . . Repair Stations . | . . . . Recycling Units . | . . . . Scanalyzers . | . . . . Garrison Access . | . . . . Data Cores Recovered . | . . . . Used . | . . . . Hacking Detections 1 | . . 1 . Full Trace Events . | . . . . Feedback Events . | . . . . Feedback Blocked . | . . . . Robot Schematics Acquired . | . . . . Robots Built . | . . . . Authchips . | . . . . Time . | . . . . Total Robot Build Rating . | . . . . Part Schematics Acquired . | . . . . Parts Built . | . . . . Authchips . | . . . . Time . | . . . . Total Part Build Rating . | . . . . Parts Repaired 3 | . . 3 . Time 78 | . . 78 . Parts Recycled . | . . . . Recycled Matter . | . . . . Retrieved Matter . | . . . . Retrieved Components . | . . . . Parts Scanalyzed . | . . . . Part Schematics Acquired . | . . . . Parts Damaged . | . . . . Bothacking | -11 -10 -9 -8 ------------ Run | Yrd Mat Mat Mat Used RIF Installer . | . . . . Robots Hacked . | . . . . Non-combat . | . . . . Combat . | . . . . Robot Hacks Applied . | . . . . Relay Couplers Released . | . . . . Fabnet Peak Effective % . | . . . . Robots Rewired . | . . . . Allies Hacked . | . . . . Hacks Repelled . | . . . . Allies | -11 -10 -9 -8 -------- Run | Yrd Mat Mat Mat Total Allies . | . . . . Largest Group . | . . . . Highest-Rated Group . | . . . . Highest-Rated Ally . | . . . . Total Orders . | . . . . Ally Attacks . | . . . . Total Damage . | . . . . Kills . | . . . . Allies Corrupted . | . . . . Allies Melted . | . . . . Intel | -11 -10 -9 -8 ------- Run | Yrd Mat Mat Mat Active Infowar (turns) 1908 | . 103 354 1451 Seismic 1908 | . 103 354 1451 Robot Analysis Total . | . . . . Derelict Logs Recovered . | . . . . Drone Launches . | . . . . Drone Recoveries . | . . . . Exploration | -11 -10 -9 -8 ------------- Run | Yrd Mat Mat Mat Turns Passed 2567 | 59 355 380 1773 Spaces Moved 1447 | 45 321 190 891 Core 2 | 2 . . . Treads . | . . . . Legs 244 | . . . 244 Wheels 1201 | 43 321 190 647 Hover . | . . . . Flight . | . . . . Fastest Speed 50 | 50 100 100 115 Average Speed 123 | 97 100 114 135 Slowest Speed 260 | 100 100 115 260 Overloaded Moves . | . . . . Propulsion Burnouts . | . . . . Robots Hopped . | . . . . Potential Cave-ins . | . . . . Cave-ins Triggered . | . . . . Exploration Rate (%) 28 | 3 38 21 51 Regions Visited 3 Branch Regions . Pre-discovered Areas . | . . . . Known Exits Taken . | . . . . Unknown Exits Taken 3 | 1 1 1 . Scrap Searched . | . . . . Spaces Dug 5 | . . . 5 Terrain Destroyed 156 | . 2 38 116 Melee . | . . . . Projectile 9 | . . . 9 AOE 147 | . 2 38 107 Terrain Rammed . | . . . . Walls Destroyed . | . . . . Machines Disabled . | . . . . Actions | -11 -10 -9 -8 --------- Run | Yrd Mat Mat Mat Total 2030 | 57 341 320 1312 Wait 349 | . 3 94 252 Move 1444 | 44 320 189 891 Hop . | . . . . Pick Up 42 | 7 7 8 20 Fast Attach 15 | 5 2 2 6 Attach 15 | 1 . 2 12 Detach 2 | . 1 . 1 Swap 44 | . . 9 35 Drop 25 | . 1 3 21 Fire 91 | . 7 13 71 Melee . | . . . . Ram . | . . . . Kick 3 | . . . 3 Crush . | . . . . Escape Stasis . | . . . . Rewire . | . . . . Trap . | . . . . Miscellaneous . | . . . . Route ------- -11/Scrapyard -10/Materials (discovered 2 exits: *Mat / [*Min]) -9/Materials -8/Materials History --------- Turn | Location | Event 14 | -11/Scrapyard | Discovered new exit (range 14) 60 | -11/Scrapyard | Entered Materials 87 | -10/Materials | Discovered new exit (range 14) 282 | -10/Materials | Discovered new exit (range 9) 300 | -10/Materials | Build established: Mutant 415 | -10/Materials | Entered another Materials area 415 | -9/Materials | Evolved 2 slots: Weapon x2 702 | -9/Materials | Repaired Grenade Launcher 718 | -9/Materials | Build established: Gunner 733 | -9/Materials | Repaired Assault Rifle 760 | -9/Materials | Repaired Seismic Detector 790 | -9/Materials | Discovered new exit (range 5) 795 | -9/Materials | Entered another Materials area 795 | -8/Materials | Evolved 2 slots: Propulsion x1, Utility x1 1206 | -8/Materials | Build established: Tank 2361 | -8/Materials | Core integrity fell below 50% 2455 | -8/Materials | Garrison activated, responded to threat 2559 | -8/Materials | Core integrity fell below 20% 2568 | -8/Materials | Destroyed by X-57 Shotgunner with Shotgun Last Messages --------------- 02546_ U-05 Engineer lays Concrete. 02547_ U-05 Engineer destroyed. 02547_ U-05 Engineer builds a Wall. 02553_ Adv. Beam Rifle destroyed. 02555_ Overheating: System interference. 02555_ Imp. Medium Laser temporarily disabled. 02555_ Acquired Imp. Ion Engine. 02555_ Carbon-fiber Leg destroyed. 02555_ Imp. Medium Laser destroyed. 02556_ U-05 Engineer lays Concrete. 02561_ K-01 Serf collects debris. 02562_ U-05 Engineer lays Concrete. 02563_ Critical hit (Burn: +37). 02564_ U-05 Engineer lays Concrete. 02565_ K-01 Serf collects debris. 02565_ Flak Cannon destroyed. 02567_ U-05 Engineer lays Concrete. 02568_ Enh. Autogun destroyed. 02568_ Kicked S-10 Pest. 02568_ Imp. Ion Engine destroyed. Map ----- +----------------------------------------------------+ | ???????????????????????????????????????# # | | ???????????????????????????????????????# # | | ???????????????????????????????????????# # | | ???????????????????????????????????????# # | | ???????????????????????????????????????#####+"#### | | ???????????????????????????????############ %+ | | ???????????????????????????????#! """ """ # # "" | | ???????????????????????????????# """ """ # # "" | | ???????????????????????????????# """ """ + + "" | | ?????????????????#?????????????# # # | | ?????????????????# ????????????# # # | | ?????????????????# ??###################### # | | ?????????????????+ ?# #########" + | | ?????????????????# ?# ## ## #### | | ?????????????????# # ## ## #### | | ?????????????????# # ## ## ## | | ?????????????????# ## ## ## | | ?????????????????# # ## ## ## | | ?????????????????# ## ## ## " | | ???????????# ##### ###u#############+### % # " | | ??????????# u % =%% % % % # " | | ??????????+ g%g [%= H + | | ??????????# k | g !*% # " | | ??????????# "us x#####+########## " | | ??????????# " # ?### ## # # # | | ??????????# """ @# ? ??#??#?# # | | ??????????# """ss# ????????# # | | ?????????? a # ????????### # | | ??????????? # ??????????# #### | | ??????????? """ " ????????### #?# | | ????????????#### """ T? ????????#### ### | | ???????????????# ^ """ "? ?????????# # | | ???????????????# """ #??????????### # ### | | ???????????????# ################ ### | | ???????????????# # # | | ???????????????+ % ######### ### | | ???????????????# #??# %#####+##### | | ???????????????# ###+######/####??# # # | | ??????????????????????????# #??# # # | | ??????????????????????????# #????## # | | ??????????????????????????# #????## # | | ??????????????????????????# """ #?????# # | | ??????????????????????????# """ #?????# # | | ??????????????????????????# """ #?????# # | | ??????????????????????????########?????# # | | ???????????????????????????????????????########### | | ??????????????????????????????????????????######## | | ??????????????????????????????????????????# | | ??????????????????????????????????????????#"" | | ??????????????????????????????????????????#"Y|=![ | +----------------------------------------------------+ Best States ------------- Heat Dissipation 31 Energy Generation 14 Energy Capacity 280 Matter Stores 300 Matter Capacity 300 Sight Range 16 Terrain Scan Density 10 Armor Coverage 225 Evasion (%) 40 Item Schematics ----------------- None Robot Schematics ------------------ None Fabricated ------------ Nothing Repaired ---------- Grenade Launcher | 66% | -9/Materials Assault Rifle | 70% | -9/Materials Seismic Detector | 70% | -9/Materials Alien Tech Used ----------------- None Achievements -------------- None Challenges ------------ None Game ------ Seed ArmoredTrackerExpander Manual? 0 Play Time 00:34:11 Cumulative 11.8 hours Start 2025.10.04 @ 14:18:01 End 2025.10.04 @ 14:51:05 Sessions 1 Manual Loads 0 Difficulty Rogue Special Mode None Game No. 11 Rogue 11 Adventurer 0 Explorer 0 Win Type - Total 0 Types 0/0/0/0/0/0/0/0/0/0 Lore% 2 Gallery% 15 Achievement% 11 Wizard Run 0 Options --------- Layout 0 ASCII 0 Keyboard 1 Movement Numpad Keybinds 0 Fullscreen 1 Font 24/Smallcaps Map View 76x50 Zoom Use 0% Tactical HUD 1 Map Filters NONE Filters NONE Steam 1 RUN: da04e0d4-7a4b-4417-8a08-f590360a55a8